bitfinex/quotes_ETHUSD_20251124
["timestamp","ask_amount","ask_price","bid_price","bid_amount"]
[1764006015330,0.1227,2935.0,2933.5,0.4814]
[1764006015547,0.0984,2934.9,2933.5,0.4814]
[1764006015762,0.0984,2934.8,2933.5,0.4814]
[1764006015907,0.1227,2935.0,2933.5,0.4814]
[1764006015908,0.6543016,2934.7,2933.5,0.4814]
[1764006016107,0.0984,2934.7,2933.5,0.4814]
[1764006016440,0.002,2935.6,2934.6,0.1859]
[1764006016844,0.002,2935.6,2934.7,0.4814]
[1764006017009,0.0984,2935.5,2934.7,0.4814]
[1764006017620,0.0984,2935.5,2934.6,0.1859]
[1764006018011,0.1227,2934.7,2934.0,0.1859]
[1764006018249,0.1227,2934.7,2933.8,0.4814]
[1764006018561,0.1227,2934.7,2933.4,0.6673]
[1764006018710,0.0984,2934.4,2933.4,0.6673]
[1764006018910,0.0984,2934.4,2933.0,0.1859]
[1764006018911,0.82399411,2934.4,2933.2,0.1859]
[1764006019119,0.82399411,2934.1,2933.2,0.1859]
[1764006019511,1.06869411,2934.1,2933.0,0.1859]
[1764006019718,0.0984,2934.2,2933.1,0.4546]
[1764006020423,0.36974,2934.1,2933.1,0.4546]
[1764006021312,0.0984,2934.5,2933.1,0.4546]
[1764006021655,0.0984,2934.8,2933.1,0.4546]
[1764006022712,3.9421,2935.0,2933.1,0.4546]
[1764006022713,0.3431,2935.4,2933.2,0.03409245]
[1764006022921,0.0984,2935.3,2933.3,0.4546]
[1764006023255,0.0984,2934.9,2933.3,0.4546]
[1764006023612,0.0984,2934.5,2933.3,0.4546]
[1764006024013,0.72559411,2934.3,2933.0,0.1859]
[1764006024275,0.57140981,2934.2,2933.0,0.1859]
[1764006024577,0.0984,2933.8,2933.0,0.1859]
[1764006024868,0.47300981,2934.2,2933.0,0.6405]
[1764006025024,0.57140981,2934.2,2933.0,0.6405]
[1764006025220,0.47300981,2934.2,2933.1,0.4546]
[1764006025426,0.0984,2934.2,2933.1,0.4546]
[1764006025654,0.0984,2934.2,2933.0,0.1859]
[1764006025840,0.0984,2933.9,2933.0,0.1859]
[1764006026043,0.748604,2934.7,2933.0,0.6405]
[1764006026450,0.0984,2934.6,2933.1,0.4546]
[1764006026670,0.1227,2934.8,2933.1,0.4546]
[1764006026849,0.0984,2934.6,2933.1,0.4546]
[1764006027273,0.0984,2934.7,2933.1,0.4546]
[1764006027985,0.0984,2934.6,2933.1,0.4546]
[1764006028280,0.0984,2934.2,2933.1,0.4546]
[1764006028576,0.4644,2934.5,2933.2,0.1931]
[1764006028728,0.4644,2934.4,2932.9,0.1931]
[1764006028931,0.0984,2934.0,2932.9,0.1931]
[1764006029164,0.36974,2934.0,2932.9,0.1931]
[1764006029366,0.1889,2933.9,2932.9,0.1931]
[1764006029540,0.0984,2933.7,2931.9,0.1931]
[1764006029939,0.1889,2933.9,2931.9,0.1931]
[1764006030532,0.1889,2933.9,2932.0,0.4546]
[1764006030876,3.599,2934.6,2932.0,0.4546]
[1764006030877,0.4644,2934.9,2933.8,0.1931]
[1764006031674,0.0984,2934.7,2933.8,0.1931]
[1764006032073,0.4644,2935.2,2933.8,0.6477]
[1764006032431,0.4644,2935.2,2933.9,0.4546]
[1764006032635,0.0984,2935.0,2933.9,0.4546]
[1764006032835,0.1889,2934.9,2933.8,0.1931]
[1764006033067,0.0984,2934.8,2933.8,0.1931]
[1764006033464,0.1889,2934.9,2933.8,0.6477]
[1764006034172,1.19847836,2935.3,2933.9,0.4546]
[1764006034409,0.4644,2935.3,2933.9,0.4546]
[1764006034581,0.2893,2935.4,2933.9,0.4546]
[1764006035169,0.7537,2935.4,2933.9,0.4546]
[1764006035468,0.0984,2935.1,2933.9,0.4546]
[1764006035700,0.002,2935.4,2933.8,0.1931]
[1764006036002,0.5648,2935.4,2934.0,0.4546]
[1764006036506,0.4664,2935.4,2934.1,0.1931]
[1764006037017,0.0984,2935.0,2934.1,0.1931]
[1764006037161,0.0984,2935.1,2933.8,0.1931]
[1764006037366,0.2873,2934.9,2933.8,0.1931]
[1764006037562,0.1889,2934.9,2933.8,0.1931]
[1764006037889,0.6533,2934.9,2933.8,0.1931]
[1764006038203,0.1889,2934.9,2933.9,0.4546]
[1764006038982,0.72559411,2934.6,2933.3,0.1931]
[1764006039288,0.1889,2933.9,2933.0,0.1931]
[1764006039499,0.1889,2933.9,2933.0,0.6477]
[1764006040074,0.4644,2934.3,2933.0,0.1931]
[1764006040309,0.47300981,2934.5,2933.1,0.4546]
[1764006040526,0.4644,2934.8,2933.1,0.4546]
[1764006041995,0.0984,2934.6,2933.1,0.4546]
[1764006042207,0.72559411,2934.6,2933.1,0.4546]
[1764006042415,0.72559411,2934.6,2933.1,3.86384677]
[1764006042819,3.40750332,2934.7,2933.2,0.4546]
[1764006043004,0.4644,2935.2,2933.3,0.72732089]
[1764006043212,0.002,2935.6,2933.3,0.72732089]
[1764006043213,6.81417215,2935.1,2933.3,0.72732089]
[1764006043417,10.22130536,2935.1,2933.4,0.4546]
[1764006043729,0.72559411,2935.0,2933.4,0.4546]
[1764006043933,1.14112995,2934.9,2933.4,0.4546]
[1764006044093,1.33002995,2934.9,2933.4,0.4546]
[1764006044289,1.14112995,2934.9,2933.4,0.4546]
[1764006044494,6.81365424,2935.3,2934.0,0.1931]
[1764006044795,6.81365424,2935.3,2934.1,0.4546]
[1764006045391,3.40680679,2935.3,2934.1,0.4546]
[1764006045627,10.22050169,2935.3,2934.1,0.4546]
[1764006045827,1.48665017,2935.2,2934.1,0.4546]
[1764006045994,1.48665017,2935.2,2934.0,0.1931]
[1764006045995,2.21224428,2935.2,2934.0,0.1931]
[1764006046195,0.5628,2935.1,2934.0,0.1931]
[1764006046394,0.1889,2934.1,2933.2,0.4546]
[1764006046633,0.0984,2934.7,2933.2,0.4546]
[1764006046811,0.1889,2934.6,2933.2,0.4546]
[1764006047209,0.0984,2934.3,2933.2,0.4546]
[1764006047409,0.0984,2934.4,2933.2,0.4546]
[1764006047717,0.0984,2934.4,2933.0,0.1931]
[1764006047916,0.0984,2934.2,2933.0,0.6653]
[1764006048430,0.72559411,2934.0,2933.0,0.1931]
[1764006048731,0.82399411,2934.0,2933.0,0.1931]
[1764006048903,0.6453,2933.9,2933.0,0.1931]
[1764006049813,0.72559411,2934.0,2933.0,0.684]
[1764006050013,1.82061356,2934.0,2933.0,0.684]
[1764006050252,0.1854,2933.9,2933.0,0.684]
[1764006050401,6.81709726,2933.8,2933.0,0.684]
[1764006050747,3.40854863,2933.8,2933.0,0.684]
[1764006051321,3.40854863,2933.8,2933.1,0.4909]
[1764006051516,3.40854863,2933.8,2933.0,0.1931]
[1764006051842,10.58504075,2933.8,2933.0,0.1931]
[1764006052043,0.4532,2933.7,2932.4,0.4909]
[1764006052456,6.81756202,2933.6,2932.4,0.4909]
[1764006052605,10.22634303,2933.6,2932.4,0.4909]
[1764006053439,3.40878101,2933.6,2932.4,0.4909]
[1764006053660,3.40878101,2933.6,2932.5,0.39011801]
[1764006053822,6.81756202,2933.6,2932.6,0.03409943]
[1764006054017,6.81756202,2933.6,2932.6,0.52499943]
[1764006054325,10.22634303,2933.6,2932.6,0.4909]
[1764006054535,0.6817562,2933.5,2932.6,0.4909]
[1764006055247,0.4532,2933.4,2932.2,0.4909]
[1764006055818,0.0984,2933.3,2932.2,0.4909]
[1764006056051,0.5516,2933.3,2932.2,0.4909]
[1764006056463,10.22773761,2933.2,2932.0,0.1931]
[1764006056616,1.07793376,2933.1,2932.0,0.1931]
[1764006056819,1.62953376,2933.1,2932.0,0.1931]
[1764006057018,1.62953376,2933.1,2931.9,0.1931]
[1764006057019,0.4532,2933.0,2931.9,0.1931]
[1764006057219,0.0984,2932.8,2931.9,0.1931]
[1764006057455,0.1854,2932.9,2931.9,0.684]
[1764006057758,0.38429279,2932.9,2931.9,0.684]
[1764006057961,0.38429279,2932.9,2931.9,0.1931]
[1764006058276,0.19889279,2932.9,2932.0,0.4909]
[1764006058620,10.22913255,2932.8,2932.0,0.4909]
[1764006058820,1.04280253,2932.7,2931.4,0.4909]
[1764006059062,2.22159664,2932.7,2931.4,0.4909]
[1764006059247,0.4532,2932.6,2931.4,0.4909]
[1764006059856,1.76839664,2932.7,2931.4,0.4909]
[1764006060031,7.01816495,2932.9,2932.5,0.0389]
[1764006060363,0.1854,2933.3,2932.3,0.4909]
[1764006060528,3.59431689,2933.5,2932.3,0.4909]
[1764006060729,10.41215067,2933.5,2932.3,0.4909]
[1764006060955,1.08653507,2933.4,2932.3,0.4909]
[1764006061166,2.26532918,2933.4,2932.0,0.1878]
[1764006061367,0.0984,2933.1,2932.0,0.1878]
[1764006061669,0.4665,2932.1,2931.3,0.4909]
[1764006061827,0.4665,2932.1,2930.9,0.4909]
[1764006062035,0.4532,2932.7,2931.1,0.52501688]
[1764006062258,3.46386373,2933.3,2931.1,0.4909]
[1764006062568,0.72559411,2932.9,2931.1,0.4909]
[1764006062969,0.72559411,2932.9,2931.2,9.68443482]
[1764006063171,0.72559411,2932.9,2931.3,1.01753348]
[1764006063469,0.72559411,2932.9,2931.4,0.23]
[1764006063772,0.72559411,2932.9,2931.5,0.7209]
[1764006064070,6.81849174,2933.2,2932.8,0.0389]
[1764006064229,6.81849174,2933.2,2932.4,0.23]
[1764006064433,1.13504917,2933.1,2932.0,0.23]
[1764006064634,13.63791336,2933.0,2931.6,0.4909]
[1764006064843,0.72559411,2932.9,2931.7,0.23]
[1764006065253,0.72559411,2932.9,2931.8,0.4909]
[1764006065456,0.75445508,2932.8,2931.8,0.4909]
[1764006065968,6.81895668,2933.0,2931.8,0.4909]
[1764006066156,10.22843502,2933.0,2931.8,0.4909]
[1764006066357,6.81895668,2933.0,2931.8,0.4909]
[1764006066571,10.22843502,2933.0,2931.8,0.4909]
[1764006066869,6.81895668,2933.0,2931.8,0.4909]
[1764006067169,6.81895668,2933.0,2931.9,0.23]
[1764006067374,1.13509567,2932.9,2931.8,0.4909]
[1764006067730,1.13509567,2932.9,2931.8,0.7209]
[1764006067731,0.4532,2932.8,2931.8,0.7209]
[1764006067928,0.4532,2932.8,2931.8,0.23]
[1764006068533,0.4532,2932.8,2931.9,0.4909]
[1764006068534,6.8194217,2932.8,2931.9,0.4909]
[1764006068948,3.40944397,2933.1,2931.9,0.52500757]
[1764006069142,6.81888187,2933.1,2931.9,0.4909]
[1764006069344,10.91020796,2933.1,2931.9,0.4909]
[1764006069971,11.36340796,2933.1,2931.9,0.4909]
[1764006070170,11.36340796,2933.1,2932.0,0.23]
[1764006070469,0.4532,2933.0,2932.1,0.2689]
[1764006070670,6.81918918,2932.9,2932.1,0.2689]
[1764006070870,14.77476092,2932.9,2931.0,0.1941]
[1764006071039,0.4532,2932.8,2931.5,0.4909]
[1764006071738,7.95557174,2932.9,2931.5,0.4909]
[1764006072378,6.81918918,2932.9,2931.5,0.4909]
[1764006072756,6.81851407,2933.2,2931.6,6.82221312]
[1764006073287,10.22778227,2933.2,2931.7,0.4909]
[1764006073756,0.4532,2933.1,2931.7,0.4909]
[1764006073956,0.4532,2933.1,2931.8,0.23]
[1764006073957,1.06809823,2933.0,2931.8,0.23]
[1764006074371,0.4532,2932.9,2931.8,0.23]
[1764006074567,0.4532,2932.9,2931.9,0.4909]
[1764006074782,6.8194217,2932.8,2931.9,0.4909]
[1764006075192,3.40971085,2932.8,2932.7,0.0389]
[1764006075360,3.40956377,2933.0,2932.7,0.4937]
[1764006075773,6.81914311,2933.0,2932.7,0.4937]
[1764006076700,6.81825928,2933.3,2932.7,0.23]
[1764006076858,0.4665,2932.8,2931.9,0.4909]
[1764006077058,0.4665,2932.8,2930.7,0.001]
[1764006077059,0.4532,2933.2,2932.0,0.23]
[1764006077258,1.17879411,2933.2,2932.0,0.23]
[1764006077462,1.17879411,2933.2,2932.1,0.0389]
[1764006077463,1.18109347,2933.1,2932.1,0.0389]
[1764006077993,1.18109347,2933.1,2932.2,0.4909]
[1764006078312,1.18109347,2933.1,2932.1,0.5298]
[1764006078485,1.18109347,2933.1,2932.2,0.23]
[1764006079013,6.81895668,2933.0,2932.3,0.7209]
[1764006079514,1.20669411,2932.9,2932.1,0.0389]
[1764006079810,1.20669411,2932.9,2932.1,0.2689]
[1764006080788,6.8194217,2932.8,2932.1,0.2689]
[1764006081179,3.40971085,2932.8,2932.7,0.4694]
[1764006081378,6.8194217,2932.8,2932.2,0.4671]
[1764006082223,6.81709726,2933.8,2932.7,0.4694]
[1764006082402,7.91155924,2933.8,2933.0,0.4694]
[1764006082603,7.91155924,2933.8,2933.1,0.4178]
[1764006082604,11.32010787,2933.8,2933.1,0.4178]
[1764006082786,7.91155924,2933.8,2933.1,0.4178]
[1764006083188,6.81709726,2933.8,2933.1,0.8849]
[1764006083678,10.22564589,2933.8,2933.1,0.4178]
[1764006083881,6.81709726,2933.8,2933.1,0.173]
[1764006084095,10.22564589,2933.8,2933.2,0.23]
[1764006084420,7.90651185,2933.8,2933.2,0.23]
[1764006084822,0.1874,2933.9,2933.3,0.4671]
[1764006084823,0.002,2933.9,2933.3,0.4671]
[1764006086215,0.002,2933.8,2933.3,0.4671]
[1764006087523,0.002,2933.8,2933.7,0.4694]
[1764006087837,0.002,2934.1,2933.8,0.4694]
[1764006088135,0.002,2934.1,2934.0,0.4694]
[1764006088291,0.002,2934.1,2934.0,0.6994]
[1764006088491,10.21937592,2935.6,2934.0,1.1665]
[1764006088699,7.29401728,2935.6,2934.1,0.6603]
[1764006088921,7.29401728,2935.6,2934.2,3.40808397]
[1764006089232,7.29401728,2935.6,2934.3,0.4068384]
[1764006089431,7.29401728,2935.6,2934.3,0.8739384]
[1764006089633,6.81291728,2935.6,2934.3,0.8739384]
[1764006089841,6.81291728,2935.6,2934.4,0.4671]
[1764006091202,6.81291728,2935.6,2934.5,0.23]
[1764006091661,6.81291728,2935.6,2934.6,0.4671]
[1764006091844,0.4811,2935.5,2934.2,0.4671]
[1764006092672,0.5795,2935.5,2934.3,0.23]
[1764006093014,10.22007222,2935.4,2934.3,0.23]
[1764006093332,0.72559411,2935.3,2934.1,0.1932]
[1764006093523,1.53363571,2935.2,2934.2,0.23]
[1764006093720,2.01473571,2935.2,2933.7,0.4671]
[1764006093923,0.0984,2934.9,2932.9,0.6623]
[1764006094124,0.0984,2934.6,2933.2,0.23]
[1764006094309,0.0984,2934.6,2932.9,0.6623]
[1764006094523,0.4811,2934.5,2932.9,0.6623]
[1764006094842,0.0984,2934.3,2933.2,0.23]
[1764006095019,10.22460036,2934.1,2933.2,0.23]
[1764006095221,0.1935,2933.3,2932.7,0.1952]
[1764006095418,0.1935,2933.3,2932.8,0.23]
[1764006095619,0.6746,2933.3,2932.4,0.1952]
[1764006095852,0.6746,2933.3,2932.5,0.23]
[1764006096522,0.1935,2932.6,2932.0,0.1952]
[1764006096732,0.1935,2932.6,2932.2,0.23]
[1764006096954,0.1935,2933.3,2932.5,0.4694]
[1764006097136,3.40924587,2933.2,2932.5,0.4694]
[1764006097545,0.1935,2933.6,2933.1,0.1689]
[1764006098017,0.1935,2933.6,2933.1,0.3989]
[1764006098425,0.6746,2933.6,2933.1,0.23]
[1764006099035,0.91909411,2933.9,2933.2,0.1689]
[1764006099249,1.40019411,2933.9,2933.2,0.1689]
[1764006099462,0.4804,2933.3,2933.2,0.23]
[1764006099826,0.4811,2933.7,2933.2,0.23]
[1764006100441,1.61973584,2933.9,2933.2,0.23]
[1764006100643,2.10083584,2933.9,2933.2,0.23]
[1764006101158,6.81709726,2933.8,2933.2,0.23]
[1764006101468,0.4804,2933.3,2933.0,0.23]
[1764006101624,0.0207,2933.2,2932.4,0.23]
[1764006101836,0.4811,2933.6,2932.4,0.23]
[1764006102133,0.4811,2933.6,2932.1,0.1952]
[1764006102134,4.32459411,2933.4,2932.1,0.1952]
[1764006102346,0.46418293,2933.3,2931.7,0.4671]
[1764006102549,0.4811,2933.3,2932.1,0.1952]
[1764006102948,0.4811,2933.3,2932.1,0.6623]
[1764006103453,10.22773761,2933.2,2932.1,0.6623]
[1764006103839,1.20669411,2933.1,2932.2,0.23]
[1764006104243,0.4811,2933.0,2932.2,0.23]
[1764006104767,0.72559411,2933.1,2932.3,0.1952]
[1764006104928,0.4811,2933.0,2932.2,0.23]
[1764006105128,0.4811,2933.0,2932.0,0.001]
[1764006105361,0.0984,2932.8,2932.0,0.001]
[1764006105777,0.4811,2932.7,2932.0,0.001]
[1764006105966,1.22096892,2932.7,2932.0,0.001]
[1764006106368,0.4811,2932.6,2932.0,0.001]
[1764006107484,6.82011934,2932.5,2932.0,0.001]
[1764006107700,0.72559411,2932.9,2932.0,0.001]
[1764006107988,0.72559411,2932.9,2932.1,0.1925]
[1764006108283,0.75445773,2932.8,2932.1,0.1925]
[1764006108846,0.75445773,2932.8,2931.5,0.001]
[1764006108847,0.75445773,2932.8,2929.0,0.05]
[1764006109044,0.05,2926.2,2925.1,9.31394232]
[1764006109256,0.73181718,2926.1,2924.1,0.1925]
[1764006109547,19.89721105,2925.8,2921.7,0.0992]
[1764006109680,1.74627653,2925.6,2923.0,0.1907]
[1764006109852,9.79585259,2923.7,2923.1,8.571051]
[1764006110052,12.2448157,2924.6,2923.3,9.983396]
[1764006110252,12.2448157,2924.6,2923.0,0.1907]
[1764006110253,2.4122743,2923.8,2923.4,0.2339825]
[1764006110554,12.2448157,2924.6,2923.5,10.01760157]
[1764006110555,2.41231867,2923.9,2923.5,10.01760157]
[1764006110754,0.72359711,2923.8,2923.1,9.983396]
[1764006111070,0.90455265,2923.2,2923.1,9.983396]
[1764006111257,3.01498796,2924.4,2923.1,10.217396]
[1764006111592,0.04998064,2924.5,2923.2,0.0739]
[1764006112051,0.423414,2924.4,2923.3,0.234]
[1764006112257,0.04998064,2924.5,2923.3,0.234]
[1764006112493,4.2467156,2925.8,2923.3,0.234]
[1764006112494,1.80910531,2925.4,2923.5,9.976184]
[1764006112789,1.80910531,2925.4,2923.4,0.10810674]
[1764006112790,1.80910531,2926.5,2924.0,1.06749411]
[1764006113086,1.80910531,2926.5,2923.8,0.72559411]
[1764006113087,1.80910531,2926.9,2924.5,9.983396]
[1764006113314,5.22557268,2927.0,2924.8,0.72559411]
[1764006113453,0.418861,2927.2,2925.2,3.41856967]
[1764006113658,0.418861,2927.2,2925.4,2.139992]
[1764006114075,0.418861,2927.2,2925.6,2.37069]
[1764006114394,0.418861,2927.3,2925.6,2.37069]
[1764006114564,0.418861,2927.3,2925.7,0.2579]
[1764006114770,0.418861,2927.3,2925.8,0.234]
[1764006115093,0.418861,2927.4,2925.8,0.234]
[1764006115268,0.418861,2927.4,2925.9,0.0239]
[1764006115464,6.83223448,2927.3,2925.9,0.0239]
[1764006115689,0.418861,2927.2,2925.5,0.0239]
[1764006115890,0.418861,2927.2,2925.6,0.234]
[1764006116579,0.418861,2927.1,2925.5,0.0239]
[1764006116786,0.418861,2927.1,2925.0,0.0239]
[1764006116959,0.418861,2926.9,2925.1,0.234]
[1764006117470,0.72559411,2927.1,2925.1,0.2579]
[1764006117471,0.418861,2926.5,2925.1,0.2579]
[1764006118481,0.418861,2926.3,2924.6,0.0239]
[1764006118791,0.418861,2926.3,2925.2,0.234]
[1764006118992,0.418861,2926.3,2924.7,0.0239]
[1764006119299,0.418861,2926.4,2924.8,0.18050661]
[1764006119604,0.418861,2926.2,2924.8,0.09741983]
[1764006120109,0.418861,2926.2,2924.9,0.234]
[1764006120466,0.906661,2926.2,2924.0,9.983396]
[1764006120707,0.418861,2926.1,2924.1,0.234]
[1764006120906,0.418861,2926.1,2923.0,3.61176323]
[1764006120907,0.418861,2926.0,2923.2,5.617571]
[1764006121068,0.418861,2925.7,2923.2,5.617571]
[1764006121413,0.58458965,2926.1,2923.4,3.87587]
[1764006121414,0.418861,2925.9,2923.4,3.87587]
[1764006121571,13.67147444,2925.8,2923.4,0.72559411]
[1764006121764,13.67147444,2925.8,2923.5,0.52841646]
[1764006121765,0.418861,2925.6,2923.5,0.52841646]
[1764006122019,3.41728462,2926.3,2923.7,2.446842]
[1764006122179,3.41728462,2926.3,2923.6,0.72559411]
[1764006122180,0.418861,2926.2,2923.8,0.639504]
[1764006122380,0.418861,2926.2,2923.6,0.405504]
[1764006122598,0.418861,2926.1,2924.0,0.405504]
[1764006122769,0.418861,2926.1,2924.1,3.08292811]
[1764006122977,0.418861,2926.2,2924.2,1.13109811]
[1764006123193,0.72559411,2926.8,2924.5,0.405504]
[1764006123471,0.1891,2927.0,2924.4,8.435601]
[1764006123472,3.41658409,2926.9,2925.1,0.405504]
[1764006123675,0.002,2926.1,2925.3,0.405504]
[1764006124205,0.002,2926.1,2925.4,0.234]
[1764006124422,0.002,2926.1,2925.3,0.405504]
[1764006124617,0.002,2926.1,2925.5,0.234]
[1764006124832,0.002,2926.1,2925.0,3.41880341]
[1764006124833,0.002,2926.1,2925.0,0.72559411]
[1764006125120,0.002,2926.1,2925.1,0.4144493]
[1764006125282,0.002,2926.1,2925.1,0.234]
[1764006125484,0.002,2926.1,2925.3,0.405504]
[1764006126487,0.002,2926.1,2925.5,0.405504]
[1764006126688,0.002,2926.1,2924.2,0.405504]
[1764006126891,0.002,2926.1,2924.3,0.72559411]
[1764006127086,0.002,2926.1,2924.6,1.13109811]
[1764006127408,0.002,2926.1,2924.9,0.405504]
[1764006127609,0.002,2926.1,2925.1,1.13109811]
[1764006128123,0.002,2926.1,2925.2,0.233]
[1764006128360,0.48144052,2925.1,2924.5,0.405504]
[1764006128524,0.53617103,2925.1,2924.8,0.405504]
[1764006128826,0.53617103,2925.1,2925.0,0.405504]
[1764006129124,0.53617103,2925.1,2925.0,3.46680911]
[1764006129303,0.53617103,2925.1,2925.0,6.97630711]
[1764006129504,0.53617103,2925.1,2925.0,11.09274123]
[1764006130039,0.53617103,2925.1,2925.0,5.48053223]
[1764006130339,0.53617103,2925.1,2925.0,15.46392823]
[1764006130634,0.53207103,2925.1,2925.0,8.85806123]
[1764006131202,0.53207103,2925.1,2925.0,7.87445623]
[1764006131523,0.53207103,2925.1,2925.0,11.35227276]
[1764006131695,0.53207103,2925.1,2925.0,11.11927276]
[1764006131900,0.53207103,2925.1,2925.0,4.81423576]
[1764006132096,0.53207103,2925.1,2925.0,8.57664776]
[1764006132310,0.53207103,2925.1,2925.0,8.37779276]
[1764006132511,0.53207103,2925.1,2925.0,7.48038695]
[1764006132835,0.53207103,2925.1,2925.0,4.94444095]
[1764006133629,0.53207103,2925.1,2925.0,5.34994495]
[1764006134044,0.002,2926.1,2925.1,0.405504]
[1764006134243,0.002,2926.1,2925.5,0.405504]
[1764006134428,0.002,2926.1,2925.6,0.233]
[1764006134645,0.002,2926.1,2925.7,2.421682]
[1764006135016,0.002,2926.1,2925.6,0.233]
[1764006135222,0.002,2926.1,2925.7,0.405504]
[1764006135621,0.002,2926.1,2925.9,0.395504]
[1764006135817,0.002,2926.1,2926.0,4.93361412]
[1764006136071,0.002,2926.1,2926.0,1.44871823]
[1764006136232,0.002,2926.1,2926.0,1.68171823]
[1764006136568,0.002,2926.1,2926.0,1.40047403]
[1764006136926,0.002,2926.1,2926.0,4.74316203]
[1764006137137,0.002,2926.1,2926.0,1.40047403]
[1764006137341,0.002,2926.1,2926.0,3.45245603]
[1764006137561,0.002,2926.1,2926.0,1.40047403]
[1764006137764,0.002,2926.1,2926.0,5.22361302]
[1764006138254,0.002,2926.1,2926.0,0.44187992]
[1764006138455,0.73644158,2926.1,2926.0,0.233]
[1764006138659,0.002,2926.1,2925.6,0.72559411]
[1764006138861,0.002,2926.1,2925.8,0.72559411]
[1764006139058,0.002,2926.1,2925.9,0.405504]
[1764006139231,0.002,2926.1,2925.8,0.72559411]
[1764006139232,0.002,2926.1,2926.0,2.900664]
[1764006139434,0.002,2926.1,2926.0,3.26328981]
[1764006139863,0.002,2926.1,2926.0,6.6809248]
[1764006140164,0.002,2926.1,2926.0,6.3462458]
[1764006140561,0.002,2926.7,2926.1,0.405504]
[1764006140776,0.4742,2926.6,2924.3,3.41958855]
[1764006140920,0.4742,2926.6,2925.1,3.41868654]
[1764006141125,0.4742,2926.6,2925.1,6.83737308]
[1764006141356,0.73461932,2926.5,2925.2,0.233]
[1764006141671,0.002,2926.7,2925.2,0.233]
[1764006141672,0.002,2926.1,2925.8,5.99112336]
[1764006141986,0.002,2926.1,2925.9,4.0562558]
[1764006142258,0.002,2926.1,2926.0,1.41024192]
[1764006142483,0.002,2926.1,2924.9,3.4189203]
[1764006142628,0.002,2926.1,2925.5,1.13109811]
[1764006142830,0.002,2926.1,2925.7,0.405504]
[1764006143447,0.002,2926.1,2925.9,0.405504]
[1764006144348,0.002,2926.1,2925.5,4.1437836]
[1764006144548,0.01851539,2926.0,2925.7,0.405504]
[1764006144722,0.01851539,2926.0,2925.3,0.405504]
[1764006144922,0.01851539,2926.0,2925.5,1.13109811]
[1764006145137,0.1906,2925.9,2925.5,0.405504]
[1764006145339,0.01851539,2925.8,2924.8,3.41999617]
[1764006145558,0.04333308,2925.3,2924.9,1.29959373]
[1764006145772,0.01851539,2925.2,2925.1,0.72559411]
[1764006146066,0.01851539,2925.2,2925.1,8.97471347]
[1764006146272,0.01851539,2925.2,2925.1,6.46960865]
[1764006146425,0.01851539,2925.2,2925.1,14.19828508]
[1764006146626,0.04333308,2925.3,2925.2,0.405504]
[1764006146864,0.04333308,2925.3,2925.2,5.605923]
[1764006147030,0.04333308,2925.3,2925.2,7.058262]
[1764006147371,0.04333308,2925.3,2925.2,6.265372]
[1764006147534,0.04333308,2925.3,2925.2,8.7147026]
[1764006148059,0.04333308,2925.3,2925.2,12.8382306]
[1764006148264,0.04333308,2925.3,2925.2,16.25680027]
[1764006148461,0.04333308,2925.3,2925.2,12.63013627]
[1764006148672,0.04333308,2925.3,2925.2,2.4493306]
[1764006148832,0.04333308,2925.3,2925.2,0.232]
[1764006149929,0.04333308,2925.3,2925.0,7.12222147]
[1764006150164,0.04333308,2925.3,2925.1,0.232]
[1764006150675,0.04333308,2925.3,2924.8,0.001]
[1764006150676,0.51753308,2925.3,2924.8,0.001]
[1764006150833,0.51753308,2925.3,2924.9,0.232]
[1764006151246,3.60838065,2925.9,2924.9,0.232]
[1764006151247,3.41827782,2925.5,2924.9,0.232]
[1764006151468,3.41827782,2925.5,2924.8,3.42003347]
[1764006151469,6.83655564,2925.5,2924.8,0.001]
[1764006151631,0.1906,2924.9,2924.8,0.001]
[1764006151829,0.92728336,2924.9,2924.5,0.001]
[1764006152066,1.53067534,2924.8,2924.6,0.232]
[1764006152273,1.53067534,2924.8,2924.6,0.229]
[1764006152274,3.59128163,2924.7,2924.6,0.229]
[1764006152570,0.4742,2924.7,2924.6,0.229]
[1764006152728,0.1906,2924.9,2924.6,0.229]
[1764006152930,0.6648,2925.9,2924.8,3.760831]
[1764006153180,7.50036026,2925.9,2925.0,0.405504]
[1764006153329,0.4742,2925.8,2925.1,0.232]
[1764006154266,0.4742,2925.8,2925.2,0.232]
[1764006154565,0.4742,2925.8,2925.2,3.65056942]
[1764006154871,0.4742,2925.8,2925.2,0.232]
[1764006155029,0.4742,2925.8,2925.3,0.232]
[1764006155230,3.892072,2925.8,2924.7,3.4191541]
[1764006155468,3.892072,2925.8,2924.8,0.68702522]
[1764006155651,0.4742,2925.7,2924.8,0.68702522]
[1764006155853,0.4742,2925.7,2924.8,0.45502522]
[1764006156054,0.1906,2924.9,2923.7,7.11995093]
[1764006156254,0.1906,2924.9,2924.2,3.42069422]
[1764006156456,4.08373813,2924.9,2924.3,0.232]
[1764006156767,7.50267626,2924.9,2924.4,0.232]
[1764006156966,0.4742,2924.8,2924.2,0.001]
[1764006157342,0.4742,2924.8,2924.3,0.232]
[1764006157937,1.28275629,2924.9,2924.3,0.232]
[1764006157938,0.1906,2924.9,2924.3,0.232]
[1764006158244,0.1906,2924.9,2924.4,0.232]
[1764006158582,0.4742,2925.2,2924.4,0.232]
[1764006158583,0.6648,2925.2,2924.4,7.43624638]
[1764006158886,4.08346139,2925.2,2924.5,0.232]
[1764006159036,0.4742,2925.1,2924.6,0.232]
[1764006159843,0.1906,2925.2,2924.6,0.232]
[1764006160376,0.1906,2925.2,2924.4,0.001]
[1764006160575,0.1906,2925.2,2924.7,0.232]